[Event "44th Chess Olympiad Women 2022"]
[Site "Chennai"]
[Date "2022.08.10"]
[Round "11.1"]
[White "Koneru, Humpy"]
[Black "Tokhirjonova, Gulrukhbegim"]
[Result "1/2-1/2"]
[ECO "D85"]
[WhiteElo "2586"]
[BlackElo "2329"]
[Annotator "ChessBase"]
[PlyCount "80"]
[EventDate "2022.07.29"]
[EventType "team-tourn"]
[EventCountry "IND"]
[SourceTitle "playchess.com"]
[Source "ChessBase"]
[SourceQuality "1"]
[WhiteTeam "India"]
[BlackTeam "United States"]
[WhiteTeamCountry "IND"]
[BlackTeamCountry "USA"]
[TimeControl "40/5400+30:1800+30"]

1. d4 {[%emt 0:00:06]} Nf6 {[%emt 0:01:42]} 2. c4 {[%emt 0:00:11]} g6 {[%emt 0:00:28]} 3. Nc3 {[%emt 0:00:25]} d5 {[%emt 0:00:14]} 4. cxd5 {[%emt 0:00:29]} Nxd5 {[%emt 0:00:16]} 5. e4 {[%emt 0:00:15]} Nxc3 {[%emt 0:00:53]} 6. bxc3 {[%emt 0:00:03]} Bg7 {[%emt 0:00:29]} 7. Qa4+ {[%emt 0:01:07]} Nd7 {[%emt 0:04:12]} 8. Nf3 {[%emt 0:00:59]} O-O {[%emt 0:01:11]} 9. Qa3 {[%emt 0:00:53]} e5 {[%emt 0:05:27]} 10. Bg5 {[%emt 0:00:57]} Bf6 {[%emt 0:02:14]} 11. Bxf6 {[%emt 0:01:29]} Qxf6 {[%emt 0:00:34]} 12. Bd3 {[%emt 0:00:41]} exd4 {[%emt 0:05:52]} 13. cxd4 {[%emt 0:02:28]} c5 {[%emt 0:00:47]} 14. e5 {[%emt 0:02:40]} Qe7 {[%emt 0:04:08]} 15. O-O {[%emt 0:02:00]} Re8 {[%emt 0:00:15]} 16. e6 {[%emt 0:18:54]} fxe6 {[%emt 0:03:17]} 17. Rfe1 {[%emt 0:04:58]} cxd4 {[%emt 0:02:42]} 18. Qb2 {[%emt 0:01:29]} Nc5 {[%emt 0:03:56]} 19. Bc4 {[%emt 0:01:09]} d3 {[%emt 0:09:10]} 20. Ne5 {[%emt 0:07:06]} Rd8 {[%emt 0:05:22]} 21. Rad1 {[%emt 0:03:24]} Qg7 {[%emt 0:19:07]} 22. h4 {[%emt 0:19:26]} b6 {[%emt 0:01:57]} 23. Re3 {[%emt 0:01:21]} Bb7 {[%emt 0:03:25]} 24. h5 {[%emt 0:05:52]} g5 {[%emt 0:00:34]} 25. h6 {[%emt 0:08:34]} Qxh6 {[%emt 0:02:20]} 26. Nxd3 {[%emt 0:06:18]} Qg7 {[%emt 0:14:06]} 27. Qc1 {[%emt 0:01:00]} Bd5 {[%emt 0:04:09]} 28. Nxc5 {[%emt 0:00:55]} Bxc4 {[%emt 0:00:44]} 29. Rxd8+ {[%emt 0:01:53]} Rxd8 {[%emt 0:00:09]} 30. Qxc4 {[%emt 0:00:22]} bxc5 {[%emt 0:00:07]} 31. Qxe6+ {[%emt 0:02:30]} Kh8 {[%emt 0:00:52]} 32. Qc6 {[%emt 0:01:12]} Qa1+ {[%emt 0:00:47]} 33. Kh2 {[%emt 0:00:15]} Qd4 {[%emt 0:00:06]} 34. g3 {[%emt 0:02:38]} Rf8 {[%emt 0:00:40]} 35. Kg2 {[%emt 0:00:43]} Qf6 {[%emt 0:03:19]} 36. Qxf6+ {[%emt 0:00:35]} Rxf6 {[%emt 0:00:01]} 37. Re8+ {[%emt 0:00:32]} Kg7 {[%emt 0:00:12]} 38. Rc8 {[%emt 0:00:12]} Ra6 {[%emt 0:00:54]} 39. Rxc5 {[%emt 0:00:06]} Kf6 {[%emt 0:00:11]} 40. Rc2 {[%emt 0:00:21]} h5 {[%emt 0:00:11]} 1/2-1/2

[Event "44th Chess Olympiad Women 2022"]
[Site "Chennai"]
[Date "2022.08.10"]
[Round "11.1"]
[White "Krush, Irina"]
[Black "Vaishali R"]
[Result "1/2-1/2"]
[ECO "D85"]
[WhiteElo "2430"]
[BlackElo "2442"]
[Annotator "ChessBase"]
[PlyCount "88"]
[EventDate "2022.07.29"]
[EventType "team-tourn"]
[EventCountry "IND"]
[SourceTitle "playchess.com"]
[Source "ChessBase"]
[SourceQuality "1"]
[WhiteTeam "United States"]
[BlackTeam "India"]
[WhiteTeamCountry "USA"]
[BlackTeamCountry "IND"]
[TimeControl "40/5400+30:1800+30"]

1. d4 {[%emt 0:00:06]} Nf6 {[%emt 0:00:36]} 2. c4 {[%emt 0:00:11]} g6 {[%emt 0:00:09]} 3. Nc3 {[%emt 0:00:22]} d5 {[%emt 0:00:04]} 4. cxd5 {[%emt 0:00:14]} Nxd5 {[%emt 0:00:03]} 5. e4 {[%emt 0:00:18]} Nxc3 {[%emt 0:00:04]} 6. bxc3 {[%emt 0:00:08]} Bg7 {[%emt 0:00:05]} 7. Be3 {[%emt 0:00:20]} c5 {[%emt 0:00:14]} 8. Rc1 {[%emt 0:00:22]} Qa5 {[%emt 0:01:44]} 9. Qd2 {[%emt 0:00:10]} O-O {[%emt 0:00:38]} 10. Nf3 {[%emt 0:00:35]} Nd7 {[%emt 0:00:56]} 11. Bd3 {[%emt 0:02:00]} e5 {[%emt 0:01:12]} 12. d5 {[%emt 0:00:20]} f5 {[%emt 0:00:31]} 13. Qe2 {[%emt 0:01:32]} fxe4 {[%emt 0:01:31]} 14. Bxe4 {[%emt 0:00:14]} Nf6 {[%emt 0:00:08]} 15. d6 {[%emt 0:01:04]} Kh8 {[%emt 0:02:02]} 16. Ng5 {[%emt 0:01:51]} h6 {[%emt 0:16:10]} 17. h4 {[%emt 0:01:37]} Nxe4 {[%emt 0:01:11]} 18. Nxe4 {[%emt 0:00:16]} b6 {[%emt 0:00:25]} 19. O-O {[%emt 0:09:06]} Qa4 {[%emt 0:08:36]} 20. f3 {[%emt 0:08:08]} Bf5 {[%emt 0:05:18]} 21. c4 {[%emt 0:02:51]} Qc6 {[%emt 0:05:30]} 22. Qd3 {[%emt 0:05:52]} Rad8 {[%emt 0:02:38]} 23. Rcd1 {[%emt 0:00:11]} Rf6 {[%emt 0:07:28]} 24. Qd5 {[%emt 0:05:52]} Qxd5 {[%emt 0:10:10]} 25. Rxd5 {[%emt 0:00:09]} Bxe4 {[%emt 0:00:11]} 26. fxe4 {[%emt 0:00:10]} Rxf1+ {[%emt 0:01:44]} 27. Kxf1 {[%emt 0:00:03]} Kg8 {[%emt 0:00:02]} 28. g4 {[%emt 0:08:50]} Kf7 {[%emt 0:01:39]} 29. h5 {[%emt 0:01:40]} g5 {[%emt 0:08:01]} 30. Bf2 {[%emt 0:04:03]} Ke6 {[%emt 0:00:31]} 31. Bg3 {[%emt 0:00:13]} Rxd6 {[%emt 0:00:41]} 32. Rxd6+ {[%emt 0:01:28]} Kxd6 {[%emt 0:00:02]} 33. Ke2 {[%emt 0:00:40]} Bf6 {[%emt 0:01:55]} 34. Kd3 {[%emt 0:00:08]} Bd8 {[%emt 0:00:45]} 35. a4 {[%emt 0:01:45]} Bc7 {[%emt 0:00:16]} 36. Kc3 {[%emt 0:00:09]} Kc6 {[%emt 0:00:04]} 37. Kb3 {[%emt 0:00:06]} Bd6 {[%emt 0:00:06]} 38. Bf2 {[%emt 0:00:21]} a6 {[%emt 0:00:13]} 39. Be3 {[%emt 0:00:27]} b5 {[%emt 0:00:15]} 40. axb5+ {[%emt 0:00:10]} axb5 {[%emt 0:00:04]} 41. Bd2 {[%emt 0:30:32]} Bc7 {[%emt 0:30:10]} 42. Bc3 {[%emt 0:01:26]} Bd6 {[%emt 0:00:04]} 43. Bd2 {[%emt 0:00:07]} Bc7 {[%emt 0:00:04]} 44. Bc3 {[%emt 0:00:07]} Bd6 {[%emt 0:00:42]} 1/2-1/2

[Event "44th Chess Olympiad Women 2022"]
[Site "Chennai"]
[Date "2022.08.10"]
[Round "11.1"]
[White "Tania, Sachdev"]
[Black "Yip, Carissa"]
[Result "0-1"]
[ECO "E92"]
[WhiteElo "2399"]
[BlackElo "2416"]
[Annotator "ChessBase"]
[PlyCount "92"]
[EventDate "2022.07.29"]
[EventType "team-tourn"]
[EventCountry "IND"]
[SourceTitle "playchess.com"]
[Source "ChessBase"]
[SourceQuality "1"]
[WhiteTeam "India"]
[BlackTeam "United States"]
[WhiteTeamCountry "IND"]
[BlackTeamCountry "USA"]
[TimeControl "40/5400+30:1800+30"]

1. d4 {[%emt 0:00:44]} Nf6 {[%emt 0:00:04]} 2. c4 {[%emt 0:00:11]} g6 {[%emt 0:00:05]} 3. Nc3 {[%emt 0:00:17]} Bg7 {[%emt 0:00:04]} 4. e4 {[%emt 0:00:08]} d6 {[%emt 0:00:04]} 5. Be2 {[%emt 0:00:49]} O-O {[%emt 0:00:11]} 6. Nf3 {[%emt 0:00:17]} e5 {[%emt 0:00:36]} 7. d5 {[%emt 0:01:12]} a5 {[%emt 0:00:56]} 8. Bg5 {[%emt 0:01:04]} Na6 {[%emt 0:01:31]} 9. Nd2 {[%emt 0:03:36]} Nc5 {[%emt 0:00:58]} 10. h4 {[%emt 0:11:16]} h6 {[%emt 0:04:26]} 11. Be3 {[%emt 0:00:22]} h5 {[%emt 0:02:08]} 12. f3 {[%emt 0:12:10]} Bd7 {[%emt 0:05:03]} 13. Nb3 {[%emt 0:09:43]} Na4 {[%emt 0:10:22]} 14. Nxa4 {[%emt 0:19:42]} Bxa4 {[%emt 0:00:53]} 15. c5 {[%emt 0:00:08]} Nd7 {[%emt 0:07:04]} 16. cxd6 {[%emt 0:03:16]} cxd6 {[%emt 0:00:03]} 17. Qd2 {[%emt 0:00:03]} f5 {[%emt 0:08:02]} 18. exf5 {[%emt 0:04:23]} gxf5 {[%emt 0:00:03]} 19. Bh6 {[%emt 0:06:06]} Bxb3 {[%emt 0:07:31]} 20. axb3 {[%emt 0:00:17]} Nc5 {[%emt 0:00:08]} 21. Ra3 {[%emt 0:03:05]} f4 {[%emt 0:00:22]} 22. Bxg7 {[%emt 0:01:31]} Kxg7 {[%emt 0:00:05]} 23. b4 {[%emt 0:08:21]} axb4 {[%emt 0:00:16]} 24. Qxb4 {[%emt 0:00:08]} Rxa3 {[%emt 0:04:24]} 25. bxa3 {[%emt 0:01:09]} Qf6 {[%emt 0:01:59]} 26. Qb6 {[%emt 0:04:39]} e4 {[%emt 0:08:46]} 27. O-O {[%emt 0:00:38]} e3 {[%emt 0:00:08]} 28. Rc1 {[%emt 0:02:54]} Rg8 {[%emt 0:03:44]} 29. Rc4 {[%emt 0:04:34]} Kh8 {[%emt 0:04:31]} 30. Bf1 {[%emt 0:00:57]} Rg6 {[%emt 0:06:11]} 31. Qc7 {[%emt 0:01:26]} Qxh4 {[%emt 0:04:34]} 32. Qc8+ {[%emt 0:00:04]} Kg7 {[%emt 0:01:18]} 33. Rc2 {[%emt 0:00:36]} Qe7 {[%emt 0:01:21]} 34. Bd3 {[%emt 0:00:45]} Rf6 {[%emt 0:03:32]} 35. Be4 {[%emt 0:00:21]} Rf7 {[%emt 0:01:03]} 36. Qh3 {[%emt 0:00:50]} Nxe4 {[%emt 0:01:56]} 37. fxe4 {[%emt 0:00:02]} Qxe4 {[%emt 0:00:06]} 38. Re2 {[%emt 0:00:24]} Qb1+ {[%emt 0:00:44]} 39. Kh2 {[%emt 0:00:07]} Qf5 {[%emt 0:00:06]} 40. Qf3 {[%emt 0:00:43]} Qg4 {[%emt 0:04:07]} 41. Qf1 {[%emt 0:30:06]} Qg3+ {[%emt 0:31:04]} 42. Kh1 {[%emt 0:01:08]} f3 {[%emt 0:02:52]} 43. Qa1+ {[%emt 0:00:00]} Kh7 {[%emt 0:00:00]} 44. Qb1+ {[%emt 0:00:00]} Kh6 {[%emt 0:00:00]} 45. gxf3 {[%emt 0:00:00]} Qxf3+ {[%emt 0:00:00]} 46. Rg2 {[%emt 0:00:00]} Qf1+ {[%emt 0:00:00]} 0-1

[Event "44th Chess Olympiad Women 2022"]
[Site "Chennai"]
[Date "2022.08.10"]
[Round "11.1"]
[White "Abrahamyan, Tatev"]
[Black "Kulkarni Bhakti"]
[Result "1-0"]
[ECO "C58"]
[WhiteElo "2291"]
[BlackElo "2373"]
[Annotator "ChessBase"]
[PlyCount "95"]
[EventDate "2022.07.29"]
[EventType "team-tourn"]
[EventCountry "IND"]
[SourceTitle "playchess.com"]
[Source "ChessBase"]
[SourceQuality "1"]
[WhiteTeam "United States"]
[BlackTeam "India"]
[WhiteTeamCountry "USA"]
[BlackTeamCountry "IND"]
[TimeControl "40/5400+30:1800+30"]

1. e4 {[%emt 0:00:04]} e5 {[%emt 0:00:46]} 2. Nf3 {[%emt 0:00:13]} Nc6 {[%emt 0:00:21]} 3. Bc4 {[%emt 0:00:13]} Nf6 {[%emt 0:00:14]} 4. Ng5 {[%emt 0:00:29]} d5 {[%emt 0:00:31]} 5. exd5 {[%emt 0:00:03]} Na5 {[%emt 0:00:06]} 6. Bb5+ {[%emt 0:00:12]} c6 {[%emt 0:00:09]} 7. dxc6 {[%emt 0:00:11]} bxc6 {[%emt 0:00:04]} 8. Bd3 {[%emt 0:00:07]} Nd5 {[%emt 0:01:21]} 9. h4 {[%emt 0:00:19]} h6 {[%emt 0:01:11]} 10. Qh5 {[%emt 0:02:02]} Qf6 {[%emt 0:00:38]} 11. Ne4 {[%emt 0:00:18]} Qe6 {[%emt 0:02:16]} 12. Nbc3 {[%emt 0:07:09]} Nf4 {[%emt 0:31:01]} 13. Qf3 {[%emt 0:03:27]} Nxd3+ {[%emt 0:02:25]} 14. Qxd3 {[%emt 0:02:09]} f5 {[%emt 0:00:54]} 15. Ng3 {[%emt 0:01:43]} Be7 {[%emt 0:00:53]} 16. b3 {[%emt 0:13:23]} Rb8 {[%emt 0:02:04]} 17. Bb2 {[%emt 0:06:49]} Rb4 {[%emt 0:06:24]} 18. O-O-O {[%emt 0:09:31]} Rxh4 {[%emt 0:06:47]} 19. Rxh4 {[%emt 0:08:17]} Bxh4 {[%emt 0:03:48]} 20. Re1 {[%emt 0:00:14]} O-O {[%emt 0:05:55]} 21. Na4 {[%emt 0:02:58]} Rd8 {[%emt 0:16:29]} 22. Qc3 {[%emt 0:02:13]} Bg5 {[%emt 0:00:16]} 23. Rxe5 {[%emt 0:18:56]} Qf7 {[%emt 0:00:19]} 24. Qxa5 {[%emt 0:05:57]} Bxd2+ {[%emt 0:01:40]} 25. Qxd2 {[%emt 0:00:03]} Rxd2 {[%emt 0:00:06]} 26. Kxd2 {[%emt 0:00:05]} Qg6 {[%emt 0:02:47]} 27. Ne2 {[%emt 0:03:24]} Kf7 {[%emt 0:08:56]} 28. Nf4 {[%emt 0:04:23]} Qg5 {[%emt 0:01:47]} 29. g3 {[%emt 0:00:57]} h5 {[%emt 0:00:02]} 30. Nc5 {[%emt 0:06:53]} h4 {[%emt 0:00:52]} 31. Re3 {[%emt 0:00:14]} Qh6 {[%emt 0:00:59]} 32. Nce6 {[%emt 0:02:20]} Bxe6 {[%emt 0:03:15]} 33. Rxe6 {[%emt 0:00:06]} Qg5 {[%emt 0:00:42]} 34. Rg6 {[%emt 0:00:53]} Qd8+ {[%emt 0:00:42]} 35. Ke2 {[%emt 0:00:52]} Qe8+ {[%emt 0:00:09]} 36. Kf1 {[%emt 0:00:20]} Qe4 {[%emt 0:00:17]} 37. Rxg7+ {[%emt 0:00:19]} Ke8 {[%emt 0:00:05]} 38. Bf6 {[%emt 0:00:58]} Qh1+ {[%emt 0:01:03]} 39. Ke2 {[%emt 0:00:03]} Qe4+ {[%emt 0:00:40]} 40. Kd2 {[%emt 0:01:08]} Qb4+ {[%emt 0:00:10]} 41. Kc1 {[%emt 0:04:59]} h3 {[%emt 0:15:28]} 42. Nxh3 {[%emt 0:02:58]} Qd6 {[%emt 0:00:14]} 43. Re7+ {[%emt 0:05:22]} Kf8 {[%emt 0:00:09]} 44. Ng5 {[%emt 0:00:27]} Qa3+ {[%emt 0:02:14]} 45. Kb1 {[%emt 0:00:21]} a6 {[%emt 0:01:08]} 46. Nh7+ {[%emt 0:00:33]} Kg8 {[%emt 0:00:03]} 47. Rg7+ {[%emt 0:00:07]} Kh8 {[%emt 0:00:06]} 48. Ng5 {[%emt 0:00:08]} 1-0

[Event "44th Chess Olympiad Women 2022"]
[Site "Chennai"]
[Date "2022.08.10"]
[Round "11.2"]
[White "Muzychuk, Mariya"]
[Black "Kashlinskaya, Alina"]
[Result "1-0"]
[ECO "C18"]
[WhiteElo "2540"]
[BlackElo "2505"]
[Annotator "ChessBase"]
[PlyCount "69"]
[EventDate "2022.07.29"]
[EventType "team-tourn"]
[EventCountry "IND"]
[SourceTitle "playchess.com"]
[Source "ChessBase"]
[SourceQuality "1"]
[WhiteTeam "Ukraine"]
[BlackTeam "Poland"]
[WhiteTeamCountry "UKR"]
[BlackTeamCountry "POL"]
[TimeControl "40/5400+30:1800+30"]

1. e4 {[%emt 0:00:04]} e6 {[%emt 0:00:09]} 2. d4 {[%emt 0:00:11]} d5 {[%emt 0:00:07]} 3. Nc3 {[%emt 0:00:11]} Bb4 {[%emt 0:00:12]} 4. e5 {[%emt 0:00:48]} Ne7 {[%emt 0:00:16]} 5. a3 {[%emt 0:00:26]} Bxc3+ {[%emt 0:00:07]} 6. bxc3 {[%emt 0:00:02]} c5 {[%emt 0:00:06]} 7. Qg4 {[%emt 0:00:28]} Qc7 {[%emt 0:00:26]} 8. Qxg7 {[%emt 0:00:44]} Rg8 {[%emt 0:00:06]} 9. Qxh7 {[%emt 0:00:04]} cxd4 {[%emt 0:00:12]} 10. Ne2 {[%emt 0:00:49]} Nbc6 {[%emt 0:03:04]} 11. f4 {[%emt 0:06:06]} dxc3 {[%emt 0:00:10]} 12. Qd3 {[%emt 0:01:28]} d4 {[%emt 0:02:33]} 13. Nxd4 {[%emt 0:01:38]} Nxd4 {[%emt 0:00:14]} 14. Qxd4 {[%emt 0:00:04]} Bd7 {[%emt 0:00:11]} 15. Rg1 {[%emt 0:00:55]} Nf5 {[%emt 0:00:24]} 16. Qf2 {[%emt 0:00:20]} Qc6 {[%emt 0:00:18]} 17. Bd3 {[%emt 0:00:41]} Qd5 {[%emt 0:03:31]} 18. Be3 {[%emt 0:01:05]} Nxe3 {[%emt 0:03:55]} 19. Qxe3 {[%emt 0:00:03]} Rxg2 {[%emt 0:00:22]} 20. Rxg2 {[%emt 0:00:14]} Qxg2 {[%emt 0:00:07]} 21. Be4 {[%emt 0:01:09]} Qxh2 {[%emt 0:00:32]} 22. O-O-O {[%emt 0:00:20]} Bc6 {[%emt 0:00:31]} 23. Bxc6+ {[%emt 0:00:25]} bxc6 {[%emt 0:00:05]} 24. Qd4 {[%emt 0:00:56]} a5 {[%emt 0:10:07]} 25. f5 {[%emt 0:01:28]} exf5 {[%emt 0:23:08]} 26. Kb1 {[%emt 0:00:24]} Kf8 {[%emt 0:07:34]} 27. Qd6+ {[%emt 0:03:44]} Kg8 {[%emt 0:04:04]} 28. Qe7 {[%emt 0:02:47]} Qf2 {[%emt 0:08:55]} 29. Ka1 {[%emt 0:09:21]} Qg2 {[%emt 0:21:51]} 30. e6 {[%emt 0:12:37]} fxe6 {[%emt 0:00:50]} 31. Qxe6+ {[%emt 0:01:07]} Kh8 {[%emt 0:00:07]} 32. Qxf5 {[%emt 0:07:27]} Ra7 {[%emt 0:09:43]} 33. Rd8+ {[%emt 0:01:48]} Kg7 {[%emt 0:00:03]} 34. Qf8+ {[%emt 0:00:17]} Kg6 {[%emt 0:00:05]} 35. Rd6+ {[%emt 0:00:17]} 1-0

[Event "44th Chess Olympiad Women 2022"]
[Site "Chennai"]
[Date "2022.08.10"]
[Round "11.2"]
[White "Ushenina, Anna"]
[Black "Kiolbasa, Oliwia"]
[Result "1-0"]
[ECO "D35"]
[WhiteElo "2423"]
[BlackElo "2376"]
[Annotator "ChessBase"]
[PlyCount "139"]
[EventDate "2022.07.29"]
[EventType "team-tourn"]
[EventCountry "IND"]
[SourceTitle "playchess.com"]
[Source "ChessBase"]
[SourceQuality "1"]
[WhiteTeam "Ukraine"]
[BlackTeam "Poland"]
[WhiteTeamCountry "UKR"]
[BlackTeamCountry "POL"]
[TimeControl "40/5400+30:1800+30"]

1. d4 {[%emt 0:00:41]} d5 {[%emt 0:00:12]} 2. c4 {[%emt 0:00:09]} e6 {[%emt 0:00:07]} 3. Nc3 {[%emt 0:00:29]} Nf6 {[%emt 0:00:10]} 4. cxd5 {[%emt 0:00:20]} exd5 {[%emt 0:00:12]} 5. Bg5 {[%emt 0:00:05]} c6 {[%emt 0:00:13]} 6. e3 {[%emt 0:00:24]} h6 {[%emt 0:00:24]} 7. Bh4 {[%emt 0:00:30]} Be7 {[%emt 0:00:19]} 8. Bd3 {[%emt 0:12:47]} O-O {[%emt 0:00:41]} 9. Nge2 {[%emt 0:06:12]} Re8 {[%emt 0:00:16]} 10. O-O {[%emt 0:00:59]} Nbd7 {[%emt 0:00:34]} 11. f3 {[%emt 0:06:56]} b5 {[%emt 0:01:11]} 12. Bf2 {[%emt 0:01:10]} a5 {[%emt 0:01:34]} 13. Rc1 {[%emt 0:18:12]} Ba6 {[%emt 0:05:42]} 14. Ng3 {[%emt 0:06:42]} Bf8 {[%emt 0:12:52]} 15. e4 {[%emt 0:15:59]} dxe4 {[%emt 0:09:20]} 16. fxe4 {[%emt 0:00:50]} b4 {[%emt 0:07:09]} 17. Na4 {[%emt 0:00:24]} Bxd3 {[%emt 0:08:56]} 18. Qxd3 {[%emt 0:00:02]} Ng4 {[%emt 0:00:11]} 19. Qf3 {[%emt 0:02:36]} Qh4 {[%emt 0:05:21]} 20. h3 {[%emt 0:00:31]} Nxf2 {[%emt 0:00:27]} 21. Rxf2 {[%emt 0:00:21]} Qf6 {[%emt 0:00:08]} 22. Qxf6 {[%emt 0:09:19]} Nxf6 {[%emt 0:00:13]} 23. e5 {[%emt 0:00:25]} Nd5 {[%emt 0:03:09]} 24. Rxc6 {[%emt 0:00:04]} Rad8 {[%emt 0:00:44]} 25. Nf5 {[%emt 0:06:56]} h5 {[%emt 0:02:40]} 26. Nc5 {[%emt 0:06:05]} Ne7 {[%emt 0:07:31]} 27. Nxe7+ {[%emt 0:00:03]} Bxe7 {[%emt 0:00:09]} 28. e6 {[%emt 0:00:17]} fxe6 {[%emt 0:01:28]} 29. Nxe6 {[%emt 0:00:10]} Rd7 {[%emt 0:05:39]} 30. Rf5 {[%emt 0:00:09]} Bd6 {[%emt 0:00:39]} 31. Nc5 {[%emt 0:02:19]} Bxc5 {[%emt 0:02:37]} 32. Rfxc5 {[%emt 0:02:25]} h4 {[%emt 0:04:26]} 33. Rc8 {[%emt 0:00:21]} Rxc8 {[%emt 0:00:47]} 34. Rxc8+ {[%emt 0:00:01]} Kf7 {[%emt 0:00:04]} 35. Rc4 {[%emt 0:01:08]} Ke6 {[%emt 0:02:25]} 36. Kf2 {[%emt 0:00:10]} Kd5 {[%emt 0:00:06]} 37. Rc5+ {[%emt 0:01:25]} Kxd4 {[%emt 0:02:02]} 38. Rxa5 {[%emt 0:00:03]} Rc7 {[%emt 0:00:59]} 39. Ra4 {[%emt 0:01:31]} Rc2+ {[%emt 0:04:38]} 40. Kg1 {[%emt 0:00:18]} Kc5 {[%emt 0:05:10]} 41. b3 {[%emt 0:06:07]} Rc1+ {[%emt 0:07:10]} 42. Kf2 {[%emt 0:00:17]} Rc2+ {[%emt 0:00:28]} 43. Kf3 {[%emt 0:06:10]} Rc3+ {[%emt 0:00:22]} 44. Kf2 {[%emt 0:04:50]} Rc2+ {[%emt 0:00:11]} 45. Kg1 {[%emt 0:00:53]} g5 {[%emt 0:07:32]} 46. a3 {[%emt 0:00:20]} bxa3 {[%emt 0:01:38]} 47. Rxa3 {[%emt 0:00:08]} Kb5 {[%emt 0:07:19]} 48. Ra1 {[%emt 0:01:47]} Rc5 {[%emt 0:09:16]} 49. Re1 {[%emt 0:01:08]} Rf5 {[%emt 0:01:15]} 50. Rf1 {[%emt 0:01:38]} Rd5 {[%emt 0:00:11]} 51. Rf3 {[%emt 0:08:01]} Kc5 {[%emt 0:00:24]} 52. Kf2 {[%emt 0:00:25]} Kd4 {[%emt 0:00:56]} 53. b4 {[%emt 0:02:43]} Rb5 {[%emt 0:02:26]} 54. Rb3 {[%emt 0:01:16]} Rf5+ {[%emt 0:02:44]} 55. Ke2 {[%emt 0:01:33]} Kc4 {[%emt 0:00:39]} 56. Rb1 {[%emt 0:00:26]} g4 {[%emt 0:00:44]} 57. hxg4 {[%emt 0:00:18]} Rf4 {[%emt 0:00:04]} 58. b5 {[%emt 0:00:20]} Rxg4 {[%emt 0:00:04]} 59. Kf3 {[%emt 0:01:13]} Rg3+ {[%emt 0:00:05]} 60. Kf2 {[%emt 0:00:08]} Rg7 {[%emt 0:00:50]} 61. b6 {[%emt 0:00:02]} Rb7 {[%emt 0:00:11]} 62. Kf3 {[%emt 0:00:28]} Kd5 {[%emt 0:01:02]} 63. Kg4 {[%emt 0:00:11]} Ke5 {[%emt 0:00:29]} 64. Kxh4 {[%emt 0:00:18]} Kf5 {[%emt 0:00:52]} 65. g4+ {[%emt 0:00:53]} Kg6 {[%emt 0:00:11]} 66. Rb5 {[%emt 0:00:11]} Kf6 {[%emt 0:00:32]} 67. g5+ {[%emt 0:00:26]} Kg6 {[%emt 0:00:05]} 68. Kg4 {[%emt 0:00:03]} Kg7 {[%emt 0:00:11]} 69. Kf5 {[%emt 0:00:08]} Kf7 {[%emt 0:00:04]} 70. Ke4 {[%emt 0:00:35]} 1-0

[Event "44th Chess Olympiad Women 2022"]
[Site "Chennai"]
[Date "2022.08.10"]
[Round "11.2"]
[White "Socko, Monika"]
[Black "Muzychuk, Anna"]
[Result "1/2-1/2"]
[ECO "D14"]
[WhiteElo "2416"]
[BlackElo "2529"]
[Annotator "ChessBase"]
[PlyCount "61"]
[EventDate "2022.07.29"]
[EventType "team-tourn"]
[EventCountry "IND"]
[SourceTitle "playchess.com"]
[Source "ChessBase"]
[SourceQuality "1"]
[WhiteTeam "Poland"]
[BlackTeam "Ukraine"]
[WhiteTeamCountry "POL"]
[BlackTeamCountry "UKR"]
[TimeControl "40/5400+30:1800+30"]

1. d4 {[%emt 0:00:03]} d5 {[%emt 0:00:06]} 2. c4 {[%emt 0:00:05]} c6 {[%emt 0:00:04]} 3. cxd5 {[%emt 0:00:38]} cxd5 {[%emt 0:00:06]} 4. Nc3 {[%emt 0:00:15]} Nf6 {[%emt 0:00:11]} 5. Bf4 {[%emt 0:01:04]} Nc6 {[%emt 0:00:08]} 6. e3 {[%emt 0:00:38]} Bf5 {[%emt 0:00:17]} 7. Bd3 {[%emt 0:02:22]} Bxd3 {[%emt 0:00:58]} 8. Qxd3 {[%emt 0:00:02]} e6 {[%emt 0:00:30]} 9. Nf3 {[%emt 0:00:22]} Bd6 {[%emt 0:01:11]} 10. Bxd6 {[%emt 0:00:49]} Qxd6 {[%emt 0:00:01]} 11. O-O {[%emt 0:00:12]} O-O {[%emt 0:00:03]} 12. Rac1 {[%emt 0:03:00]} Rac8 {[%emt 0:00:51]} 13. a3 {[%emt 0:00:00]} Nd7 {[%emt 0:06:27]} 14. Na4 {[%emt 0:05:03]} Ncb8 {[%emt 0:13:11]} 15. Rc2 {[%emt 0:08:38]} Rc6 {[%emt 0:02:03]} 16. Rfc1 {[%emt 0:01:32]} Rfc8 {[%emt 0:00:08]} 17. h3 {[%emt 0:01:57]} h6 {[%emt 0:01:38]} 18. Rxc6 {[%emt 0:01:22]} Rxc6 {[%emt 0:00:13]} 19. Rxc6 {[%emt 0:00:48]} Nxc6 {[%emt 0:00:15]} 20. Qb5 {[%emt 0:05:17]} b6 {[%emt 0:01:51]} 21. Nc3 {[%emt 0:03:47]} Qc7 {[%emt 0:02:52]} 22. g3 {[%emt 0:05:12]} Qc8 {[%emt 0:08:08]} 23. Kg2 {[%emt 0:01:12]} Na5 {[%emt 0:01:43]} 24. Nd2 {[%emt 0:01:49]} Nf6 {[%emt 0:01:23]} 25. Qb4 {[%emt 0:04:10]} Nc6 {[%emt 0:02:42]} 26. Qb5 {[%emt 0:00:29]} Ne8 {[%emt 0:00:51]} 27. Qa4 {[%emt 0:02:29]} Nd6 {[%emt 0:02:41]} 28. Nb5 {[%emt 0:03:55]} Nxb5 {[%emt 0:00:23]} 29. Qxb5 {[%emt 0:00:02]} Na5 {[%emt 0:00:38]} 30. Nf3 {[%emt 0:00:36]} Nc4 {[%emt 0:01:00]} 31. Qb4 {[%emt 0:03:24]} 1/2-1/2